fUST/lending_fUST_20251212
["ID","MTS","AMOUNT","RATE_DAILY","PERIOD"]
[398349395,1765543832820,-500.0,0.00011421,2]
[398349396,1765543832829,-500.0,0.00011421,2]
[398349397,1765543832838,-500.0,0.00011421,2]
[398349398,1765543832849,-500.0,0.00011421,2]
[398349399,1765543832858,-500.0,0.00011421,2]
[398349400,1765543832867,-500.0,0.00011421,2]
[398349401,1765543832877,-500.0,0.00011421,2]
[398349402,1765543832886,-500.0,0.00011421,2]
[398349403,1765543832895,-500.0,0.00011421,2]
[398349404,1765543832905,-500.0,0.00011421,2]
[398349405,1765543832914,-500.0,0.00011421,2]
[398349406,1765543832924,-500.0,0.00011421,2]
[398349407,1765543832934,-500.0,0.00011421,2]
[398349408,1765543832943,-500.0,0.00011421,2]
[398349409,1765543832952,-383.27098023,0.00011421,2]
[398349410,1765543832964,-500.0,0.00011421,2]
[398349411,1765543832973,-367.42680777,0.00011421,2]
[398349412,1765543832983,-500.0,0.00011421,2]
[398349413,1765543832992,-500.0,0.00011421,2]
[398349414,1765543833002,-500.0,0.00011421,2]
[398349415,1765543833011,-500.0,0.00011421,2]
[398349416,1765543833020,-500.0,0.00011421,2]
[398349417,1765543833029,-500.0,0.00011421,2]
[398349418,1765543833039,-200.0,0.00011421,2]
[398349419,1765543833048,-500.0,0.00011421,2]
[398349420,1765543833058,-500.0,0.00011421,2]
[398349421,1765543833067,-500.0,0.00011421,2]
[398349422,1765543833076,-500.0,0.00011421,2]
[398349423,1765543833088,-500.0,0.00011421,2]
[398349424,1765543833099,-500.0,0.00011421,2]
[398349425,1765543833108,-500.0,0.00011421,2]
[398349426,1765543833118,-500.0,0.00011421,2]
[398349427,1765543833128,-500.0,0.00011421,2]
[398349428,1765543833138,-500.0,0.00011421,2]
[398349429,1765543833147,-201.84991692,0.00011421,2]
[398349430,1765543833156,-500.0,0.00011421,2]
[398349431,1765543833165,-500.0,0.00011421,2]
[398349432,1765543833175,-500.0,0.00011421,2]
[398349433,1765543833185,-500.0,0.00011421,2]
[398349434,1765543833195,-500.0,0.00011421,2]
[398349435,1765543833204,-500.0,0.00011421,2]
[398349436,1765543833213,-500.0,0.00011421,2]
[398349437,1765543833223,-500.0,0.00011421,2]
[398349438,1765543833233,-366.80509322,0.00011421,2]
[398349439,1765543833242,-500.0,0.00011421,2]
[398349440,1765543833252,-500.0,0.00011421,2]
[398349441,1765543833262,-500.0,0.00011421,2]
[398349442,1765543833271,-500.0,0.00011421,2]
[398349443,1765543833281,-500.0,0.00011421,2]
[398349444,1765543833290,-500.0,0.00011421,2]
[398349445,1765543833300,-500.0,0.00011421,2]
[398349446,1765543833309,-500.0,0.00011421,2]
[398349447,1765543833320,-500.0,0.00011421,2]
[398349448,1765543833330,-500.0,0.00011421,2]
[398349449,1765543833339,-500.0,0.00011421,2]
[398349450,1765543833349,-500.0,0.00011421,2]
[398349451,1765543833359,-500.0,0.00011421,2]
[398349452,1765543833369,-500.0,0.00011421,2]
[398349453,1765543833379,-500.0,0.00011421,2]
[398349454,1765543833389,-500.0,0.00011421,2]
[398349455,1765543833398,-500.0,0.00011421,2]
[398349456,1765543833410,-500.0,0.00011421,2]
[398349457,1765543833419,-500.0,0.00011421,2]
[398349458,1765543833429,-500.0,0.00011421,2]
[398349459,1765543833439,-500.0,0.00011421,2]
[398349460,1765543833448,-500.0,0.00011421,2]
[398349461,1765543833457,-500.0,0.00011421,2]
[398349462,1765543833467,-500.0,0.00011421,2]
[398349463,1765543833477,-500.0,0.00011421,2]
[398349464,1765543833487,-500.0,0.00011421,2]
[398349465,1765543833497,-500.0,0.00011421,2]
[398349466,1765543833507,-500.0,0.00011421,2]
[398349467,1765543833518,-500.0,0.00011421,2]
[398349468,1765543833529,-500.0,0.00011421,2]
[398349469,1765543833538,-500.0,0.00011421,2]
[398349470,1765543833548,-500.0,0.00011421,2]
[398349471,1765543833558,-500.0,0.00011421,2]
[398349472,1765543833568,-500.0,0.00011421,2]
[398349473,1765543833578,-500.0,0.00011421,2]
[398349474,1765543833587,-500.0,0.00011421,2]
[398349475,1765543833598,-500.0,0.00011421,2]
[398349476,1765543833608,-500.0,0.00011421,2]
[398349477,1765543833617,-500.0,0.00011421,2]
[398349478,1765543833627,-500.0,0.00011421,2]
[398349479,1765543833636,-301.24583904,0.00011421,2]
[398349480,1765543833646,-500.0,0.00011421,2]
[398349481,1765543833655,-500.0,0.00011421,2]
[398349482,1765543833665,-500.0,0.00011421,2]
[398349483,1765543833674,-500.0,0.00011421,2]
[398349484,1765543833684,-500.0,0.00011421,2]
[398349485,1765543833694,-500.0,0.00011421,2]
[398349486,1765543833704,-500.0,0.00011421,2]
[398349487,1765543833713,-500.0,0.00011421,2]
[398349488,1765543833723,-500.0,0.00011421,2]
[398349489,1765543833732,-500.0,0.00011421,2]
[398349490,1765543833742,-500.0,0.00011421,2]
[398349491,1765543833751,-500.0,0.00011421,2]
[398349492,1765543833760,-206.67994887,0.00011421,2]
[398349493,1765543834317,5000.0,8.532e-05,2]
[398349497,1765543838223,-574.12855637,0.00010286,2]
[398349499,1765543838235,-595.37131296,0.00010834,2]
[398349501,1765543838245,-617.40005154,0.00011382,2]
[398349503,1765543838256,-151.0,0.00011422,3]
[398349504,1765543838266,-151.0,0.00011422,3]
[398349505,1765543838275,-151.0,0.00011422,3]
[398349506,1765543838284,-151.0,0.00011422,3]
[398349507,1765543838294,-151.0,0.00011422,3]
[398349508,1765543838304,-151.0,0.00011422,3]
[398349509,1765543838314,-60.01590328,0.00011422,3]
[398349510,1765543838335,-90.98409672,0.00011422,3]
[398349511,1765543838345,-151.0,0.00011422,3]
[398349512,1765543838357,-151.0,0.00011422,3]
[398349513,1765543838367,-151.0,0.00011422,3]
[398349514,1765543838377,-151.0,0.00011422,3]
[398349515,1765543838388,-151.0,0.00011422,3]
[398349516,1765543838401,-151.0,0.00011422,3]
[398349517,1765543838411,-151.0,0.00011422,3]
[398349519,1765543838422,-151.0,0.00011422,3]
[398349521,1765543838433,-151.0,0.00011422,3]
[398349522,1765543838443,-151.0,0.00011422,3]
[398349523,1765543838455,-151.0,0.00011422,3]
[398349524,1765543838466,-151.0,0.00011422,3]
[398349525,1765543838478,-152.314939,0.00011422,3]
[398349526,1765543838489,-421.95285961,0.000115,2]
[398349527,1765543838503,-3138.04255411,0.000115,2]
[398349528,1765543839910,150.0,7.222e-05,2]
[398349532,1765543840435,-1540.49800524,0.000115,2]
[398349533,1765543840446,-2000.04507,0.000115,2]
[398349534,1765543840458,-433.33155169,0.000115,2]
[398349536,1765543840470,-452.649032,0.000115,2]
[398349537,1765543840491,-2674.36402411,0.000115,2]
[398349538,1765543840627,150.0,7.878e-05,2]
[398349539,1765543841055,150.0,8.535e-05,2]
[398349544,1765543843399,-150.0,9.191e-05,2]
[398349545,1765543843413,-33500.13717941,0.000115,2]
[398349546,1765543843425,-289.54641168,0.000115,2]
[398349547,1765543843502,-1135.04524533,0.000115,2]
[398349552,1765543846300,-4487.88283598,0.000115,2]
[398349553,1765543846313,-253.7425319,0.000115,2]
[398349554,1765543892830,161.998741,4.637e-05,2]
[398349588,1765544914847,308.57472745,0.000101,9]
[398349589,1765545031448,150.0,8.495e-05,2]
[398349643,1765545038424,-150.0,8.712e-05,2]
[398349645,1765545038434,-161.998741,9.275e-05,2]
[398349647,1765545038443,-199.92288844,9.277e-05,2]
[398349649,1765545038453,-505.483453,9.776e-05,2]
[398349651,1765545038462,-224.81,0.0001,2]
[398349653,1765545038472,-224.81,0.000101,2]
[398349655,1765545038481,-224.81,0.000102,2]
[398349657,1765545038491,-224.81,0.000102,2]
[398349659,1765545038500,-313.68162517,0.00010221,2]
[398349661,1765545038509,-224.81,0.000103,2]
[398349663,1765545038519,-224.81,0.000104,2]
[398349665,1765545038528,-255.0,0.00010437,2]
[398349667,1765545038538,-224.81,0.000105,2]
[398349669,1765545038547,-224.81,0.000106,2]
[398349671,1765545038557,-224.81,0.000107,2]
[398349673,1765545038567,-224.81,0.000107,2]
[398349675,1765545038577,-177.0,0.00010712,2]
[398349677,1765545038586,-224.81,0.000108,2]
[398349679,1765545038596,-87.18287494,0.000109,2]
[398349749,1765545044299,-137.62712506,0.000109,2]
[398349750,1765545044308,-224.81,0.00011,2]
[398349751,1765545044318,-224.81,0.000111,2]
[398349752,1765545044327,-224.81,0.000111,2]
[398349753,1765545044336,-108.32417241,0.00011152,2]
[398349754,1765545044347,-465.80438396,0.00011152,2]
[398349755,1765545044356,-1200.0,0.00011159,2]
[398349756,1765545044366,-500.0,0.0001116,2]
[398349757,1765545044375,-500.0,0.0001116,2]
[398349758,1765545044384,-500.0,0.0001116,2]
[398349759,1765545044394,-300.0,0.00011199,2]
[398349760,1765545044403,-1055.90610214,0.000112,10]
[398349761,1765545044413,-224.81,0.000112,2]
[398349762,1765545044423,-173.493,0.000113,2]
[398349763,1765545044432,-224.81,0.000113,2]
[398349764,1765545044442,-385.7,0.00011312,2]
[398349765,1765545044452,-251.75564597,0.00011338,2]
[398349766,1765545044461,-172.07625562,0.000114,2]
[398349767,1765545044471,-224.81,0.000114,2]
[398349768,1765545044481,-207.49186753,0.0001141,2]
[398349769,1765545044491,-500.0,0.0001141,2]
[398349770,1765545044501,-500.0,0.0001141,2]
[398349771,1765545044510,-500.0,0.0001141,2]
[398349772,1765545044519,-500.0,0.0001141,2]
[398349773,1765545044528,-500.0,0.0001141,2]
[398349774,1765545044538,-466.87221299,0.0001141,2]
[398349775,1765545044547,-500.0,0.0001141,2]
[398349776,1765545044556,-500.0,0.0001141,2]
[398349777,1765545044566,-500.0,0.0001141,2]
[398349778,1765545044576,-500.0,0.0001141,2]
[398349779,1765545044585,-500.0,0.0001141,2]
[398349780,1765545044595,-500.0,0.0001141,2]
[398349781,1765545044604,-500.0,0.0001141,2]
[398349782,1765545044613,-500.0,0.0001141,2]
[398349783,1765545044623,-500.0,0.0001141,2]
[398349784,1765545044632,-500.0,0.0001141,2]
[398349785,1765545044641,-500.0,0.0001141,2]
[398349786,1765545044651,-500.0,0.0001141,2]
[398349787,1765545044660,-500.0,0.0001141,2]
[398349788,1765545044669,-500.0,0.0001141,2]
[398349789,1765545044679,-500.0,0.0001141,2]
[398349790,1765545044688,-500.0,0.0001141,2]
[398349791,1765545044697,-500.0,0.0001141,2]
[398349792,1765545044707,-500.0,0.0001141,2]
[398349793,1765545044716,-500.0,0.0001141,2]
[398349794,1765545044726,-500.0,0.0001141,2]
[398349795,1765545044735,-500.0,0.0001141,2]
[398349796,1765545044745,-500.0,0.0001141,2]
[398349797,1765545044754,-500.0,0.0001141,2]
[398349798,1765545044763,-500.0,0.0001141,2]
[398349799,1765545044773,-500.0,0.0001141,2]
[398349800,1765545044782,-500.0,0.0001141,2]
[398349801,1765545044791,-500.0,0.0001141,2]
[398349802,1765545044804,-500.0,0.0001141,2]
[398349803,1765545044814,-500.0,0.0001141,2]
[398349804,1765545044824,-500.0,0.0001141,2]
[398349805,1765545044833,-293.65537359,0.0001141,2]
[398349806,1765545044843,-500.0,0.0001141,2]
[398349807,1765545044853,-500.0,0.0001141,2]
[398349808,1765545044862,-500.0,0.0001141,2]
[398349809,1765545044871,-500.0,0.0001141,2]
[398349810,1765545044881,-500.0,0.0001141,2]
[398349811,1765545044891,-500.0,0.0001141,2]
[398349812,1765545044902,-500.0,0.0001141,2]
[398349813,1765545044911,-352.49704121,0.0001141,2]
[398349814,1765545044921,-500.0,0.0001141,2]
[398349815,1765545044930,-500.0,0.0001141,2]
[398349816,1765545044939,-500.0,0.0001141,2]
[398349817,1765545044949,-500.0,0.0001141,2]
[398349818,1765545044958,-500.0,0.0001141,2]
[398349819,1765545044967,-500.0,0.0001141,2]
[398349820,1765545044977,-500.0,0.0001141,2]
[398349821,1765545044986,-500.0,0.0001141,2]
[398349822,1765545044996,-500.0,0.0001141,2]
[398349823,1765545045005,-500.0,0.0001141,2]
[398349824,1765545045015,-500.0,0.0001141,2]
[398349825,1765545045025,-500.0,0.0001141,2]
[398349826,1765545045034,-500.0,0.0001141,2]
[398349827,1765545045044,-500.0,0.0001141,2]
[398349828,1765545045055,-500.0,0.0001141,2]
[398349829,1765545045072,-360.82298494,0.0001141,2]
[398349830,1765545045084,-139.17701506,0.0001141,2]
[398349831,1765545045093,-500.0,0.0001141,2]
[398349832,1765545045103,-500.0,0.0001141,2]
[398349833,1765545045112,-500.0,0.0001141,2]
[398349834,1765545045122,-500.0,0.0001141,2]
[398349835,1765545045130,-2000.0,0.00011421,3]
[398349836,1765545045141,-600.0,0.00011424,2]
[398349837,1765545045151,-2068.5703971,0.00011464,2]
[398349838,1765545045160,-2000.0,0.00011499,2]
[398349839,1765545045170,-5488.30158784,0.000115,2]
[398349840,1765545045181,-620.51122382,0.000115,2]
[398349841,1765545045193,-1155.4,0.000115,2]
[398349842,1765545045309,-12235.6585147,0.000115,2]
[398349844,1765545046361,-646.41081081,0.000115,2]
[398349845,1765545046401,-7660.00359772,0.000115,2]
[398349846,1765545046675,-1467.78460924,0.000115,2]
[398349847,1765545046686,-1098.37612677,0.000115,2]
[398349848,1765545051921,300.0,0.00012525,120]
[398349849,1765545053659,292.65,0.00012525,120]
[398349852,1765545590623,-152.99,9.9e-05,2]
[398349853,1765545590653,-152.99,0.0001,2]
[398349854,1765545590686,-300.0,0.00010064,2]
[398349855,1765545596925,5000.0,0.00010065,2]
[398349871,1765546056096,-150.0,9.783e-05,2]
[398349872,1765546056128,-150.0,9.991e-05,2]
[398349873,1765546056160,-204.01,0.0001,2]
[398349985,1765546244019,-1305.98188668,9.963e-05,2]
[398349993,1765546320032,150.0,7.074e-05,2]
[398349994,1765546320459,150.0,7.718e-05,2]
[398349995,1765546320877,150.0,8.361e-05,2]
[398349997,1765546386650,150.0,7.081e-05,2]
[398349999,1765546527856,-150.0,9.339e-05,2]
[398350000,1765546527886,-150.0,9.433e-05,2]
[398350001,1765546527921,-204.55,0.0001,2]
[398350002,1765546527948,-300.0,0.00010063,2]
[398350003,1765546527977,-300.0,0.00010063,2]
[398350004,1765546528006,-300.0,0.00010063,2]
[398350005,1765546528035,-300.0,0.00010063,2]
[398350006,1765546528072,-890.0,0.00010063,2]
[398350007,1765546535358,4810.91,0.00010064,2]
[398350008,1765546582872,166.0,5.2e-07,2]
[398350009,1765546583994,166.0,5.2e-07,2]
[398350010,1765546585042,166.0,5.2e-07,2]
[398350011,1765546586119,166.0,5.2e-07,2]
[398350035,1765547136359,-150.0,8.573e-05,2]
[398350036,1765547147159,150.0,8.573e-05,2]
[398350037,1765547182140,-150.0,8.573e-05,2]
[398350038,1765547194116,150.0,8.573e-05,2]
[398350039,1765547228460,-150.0,8.573e-05,2]
[398350040,1765547230473,450.0,8.42e-05,2]
[398350042,1765547240687,150.0,8.573e-05,2]
[398350043,1765547272787,-150.0,8.573e-05,2]
[398350044,1765547286753,150.0,8.573e-05,2]
[398350045,1765547297088,150.0,7.017e-05,2]
[398350046,1765547297551,150.0,7.655e-05,2]
[398350047,1765547298054,150.0,8.293e-05,2]
[398350048,1765547303210,-228.39,8.573e-05,2]
[398350049,1765547318315,-150.0,8.594e-05,2]
[398350050,1765547363549,150.0,7.019e-05,2]
[398350051,1765547364042,150.0,7.657e-05,2]
[398350052,1765547364533,150.0,8.295e-05,2]
[398350062,1765547431774,-170.39641245,8.559e-05,2]
[398350063,1765547431784,-150.0,8.594e-05,2]
[398350064,1765547431793,-150.0,8.681e-05,2]
[398350065,1765547431803,-292.1,8.791e-05,2]
[398350066,1765547431812,-219.4448598,8.821e-05,2]
[398350068,1765547431821,-164.66022725,9.285e-05,2]
[398350069,1765547431830,-273.5985005,0.0001,2]
[398350098,1765547437748,-61.7814995,0.0001,2]
[398350099,1765547437758,-493.03420051,0.00010064,2]
[398350100,1765547437768,-500.0,0.00010064,2]
[398350101,1765547437777,-500.0,0.00010064,2]
[398350102,1765547437787,-500.0,0.00010064,2]
[398350103,1765547437796,-254.85059707,0.00010064,2]
[398350104,1765547437805,-500.0,0.00010064,2]
[398350105,1765547437814,-500.0,0.00010064,2]
[398350106,1765547437823,-500.0,0.00010064,2]
[398350107,1765547437832,-500.0,0.00010064,2]
[398350108,1765547437842,-500.0,0.00010064,2]
[398350109,1765547437851,-500.0,0.00010064,2]
[398350110,1765547437860,-500.0,0.00010064,2]
[398350111,1765547437870,-500.0,0.00010064,2]
[398350112,1765547437880,-500.0,0.00010064,2]
[398350113,1765547437889,-157.72307498,0.00010064,2]
[398350114,1765547437898,-500.0,0.00010064,2]
[398350115,1765547437908,-500.0,0.00010064,2]
[398350116,1765547437917,-500.0,0.00010064,2]
[398350117,1765547437926,-500.0,0.00010064,2]
[398350118,1765547437936,-500.0,0.00010064,2]
[398350119,1765547437945,-500.0,0.00010064,2]
[398350120,1765547437955,-500.0,0.00010064,2]
[398350121,1765547437964,-500.0,0.00010064,2]
[398350122,1765547437973,-500.0,0.00010064,2]
[398350123,1765547437983,-500.0,0.00010064,2]
[398350124,1765547437992,-500.0,0.00010064,2]
[398350125,1765547438001,-500.0,0.00010064,2]
[398350126,1765547438011,-500.0,0.00010064,2]
[398350127,1765547438020,-500.0,0.00010064,2]
[398350128,1765547438030,-500.0,0.00010064,2]
[398350129,1765547438039,-500.0,0.00010064,2]
[398350130,1765547438054,-500.0,0.00010064,2]
[398350131,1765547438063,-19035.30720633,0.00010065,2]
[398350132,1765547438083,-835.1938949,0.00010065,2]
[398350133,1765547438097,-349.27061644,0.00010065,2]
[398350134,1765547438109,-284.22437778,0.00010065,2]
[398350135,1765547439130,3727.0,8.559e-05,2]
[398350176,1765547442929,-300.0,0.00010065,2]
[398350177,1765547443040,-1030.40296552,0.00010065,2]
[398350178,1765547443055,-892.72318,0.00010065,2]
[398350186,1765547445851,-6071.99999998,0.00010065,2]
[398350228,1765547495416,150.0,7.049e-05,2]
[398350229,1765547495824,150.0,7.69e-05,2]
[398350230,1765547496266,150.0,8.331e-05,2]
[398350233,1765547569291,150.0,7.044e-05,2]
[398350234,1765547570171,150.0,7.684e-05,2]
[398350235,1765547570588,150.0,8.324e-05,2]
[398350236,1765547597916,167.0,5.2e-07,2]
[398350237,1765547598826,167.0,5.2e-07,2]
[398350238,1765547599854,167.0,5.2e-07,2]
[398350239,1765547600915,167.0,5.2e-07,2]
[398350240,1765547601951,167.0,5.2e-07,2]
[398350241,1765547602989,167.0,5.2e-07,2]
[398350242,1765547641701,150.0,7.044e-05,2]
[398350243,1765547642336,150.0,7.684e-05,2]
[398350244,1765547642825,150.0,8.324e-05,2]
[398350245,1765547715183,150.0,7.038e-05,2]
[398350246,1765547715634,150.0,7.678e-05,2]
[398350247,1765547716058,150.0,8.318e-05,2]
[398350248,1765547787342,150.0,7.028e-05,2]
[398350249,1765547787752,150.0,7.666e-05,2]
[398350250,1765547788215,150.0,8.305e-05,2]
[398350252,1765547858487,150.0,7.028e-05,2]
[398350253,1765547858886,150.0,7.667e-05,2]
[398350254,1765547859413,150.0,8.306e-05,2]
[398350255,1765547929859,150.0,7.018e-05,2]
[398350256,1765547930275,150.0,7.656e-05,2]
[398350257,1765547930689,150.0,8.294e-05,2]
[398350259,1765547999813,150.0,7.023e-05,2]
[398350260,1765548000256,150.0,7.661e-05,2]
[398350261,1765548000679,150.0,8.3e-05,2]
[398350262,1765548069176,150.0,7.017e-05,2]
[398350263,1765548069616,150.0,7.655e-05,2]
[398350264,1765548070031,150.0,8.293e-05,2]
[398350265,1765548136471,150.0,7.05e-05,2]
[398350266,1765548136873,150.0,7.691e-05,2]
[398350267,1765548137422,150.0,8.332e-05,2]
[398350268,1765548203859,150.0,7.015e-05,2]
[398350269,1765548204325,150.0,7.652e-05,2]
[398350270,1765548269714,21.01,7.004e-05,2]
[398350271,1765548269740,128.99,7.004e-05,2]
[398350273,1765548417092,-313.72046547,8.617e-05,2]
[398350274,1765548430453,229.27953453,8.531e-05,2]
[398350275,1765548465226,150.0,7.006e-05,2]
[398350277,1765548530926,150.0,7.008e-05,2]
[398350278,1765548606589,171.21292056,8.417e-05,2]
[398350306,1765548631960,-150.0,8.617e-05,2]
[398350307,1765548631970,-150.0,8.647e-05,2]
[398350308,1765548631980,-167.28,8.791e-05,2]
[398350309,1765548631990,-167.28,8.791e-05,2]
[398350310,1765548632001,-167.28,8.791e-05,2]
[398350311,1765548632011,-216.5254087,9.584e-05,2]
[398350312,1765548632021,-372.07,0.0001,2]
[398350313,1765548632032,-1340.5166755,0.00010064,2]
[398350314,1765548632048,-659.4833245,0.00010064,2]
[398350315,1765548632058,-166.76012325,0.00010065,2]
[398350316,1765548632067,-151.0,0.00010065,2]
[398350317,1765548632077,-179.36038715,0.00010065,2]
[398350318,1765548632087,-2351.39019495,0.00010065,2]
[398350319,1765548632096,-372.07,0.000101,2]
[398350320,1765548632112,-372.07,0.000102,2]
[398350321,1765548632123,-372.07,0.000102,2]
[398350322,1765548632134,-209.26045105,0.00010214,2]
[398350323,1765548632144,-372.07,0.000103,2]
[398350324,1765548632153,-372.07,0.000104,2]
[398350325,1765548632163,-372.07,0.000105,2]
[398350326,1765548632173,-372.07,0.000106,2]
[398350327,1765548632183,-177.0,0.00010647,2]
[398350328,1765548632193,-372.07,0.000107,2]
[398350329,1765548632203,-372.07,0.000107,2]
[398350330,1765548632215,-500.0,0.00010959,2]
[398350331,1765548632225,-306.602728,0.00010959,2]
[398350332,1765548632235,-501.39044378,0.00011,2]
[398350333,1765548632244,-20550.64108904,0.00011,2]
[398350334,1765548632255,-183.37953476,0.00011,2]
[398350335,1765548632265,-2904.26671394,0.00011,2]
[398350336,1765548632275,-171.214,0.00011,2]
[398350337,1765548632285,-229.51,0.000112,2]
[398350338,1765548632295,-156.91,0.000112,2]
[398350339,1765548632304,-156.91,0.000112,2]
[398350340,1765548632314,-156.91,0.000112,2]
[398350341,1765548632323,-156.91,0.000112,2]
[398350342,1765548632333,-156.91,0.000112,2]
[398350343,1765548632343,-156.91,0.000112,2]
[398350344,1765548632353,-151.28515502,0.0001127,2]
[398350345,1765548632364,-500.0,0.00011408,2]
[398350346,1765548632375,-500.0,0.00011408,2]
[398350347,1765548632385,-517.52478611,0.00011408,2]
[398350348,1765548632396,-20056.35468109,0.00011409,2]
[398350349,1765548632408,-1605.72136513,0.00011409,2]
[398350373,1765548638020,-372.07,0.000108,2]
[398350375,1765548638030,-372.07,0.000109,2]
[398350377,1765548638039,-574.12855637,0.00010993,2]
[398350379,1765548638049,-372.07,0.00011,2]
[398350382,1765548638058,-372.07,0.000111,2]
[398350383,1765548638068,-372.07,0.000111,2]
[398350386,1765548638078,-372.07,0.000112,2]
[398350387,1765548638087,-500.0,0.00011233,2]
[398350389,1765548638097,-372.07,0.000113,2]
[398350391,1765548638107,-372.07,0.000114,2]
[398350394,1765548638116,-949.31144363,0.00011409,2]
[398350396,1765548638135,-2521.307953,0.00011409,2]
[398350515,1765548640370,-440.45,0.00011409,2]
[398350535,1765548646053,-135.77772819,0.00011409,2]
[398350536,1765548646064,-15370.8101074,0.000115,2]
[398350537,1765548646075,-10310.16204709,0.000115,2]
[398350538,1765548646112,-401.70211563,0.000115,2]
[398350583,1765549832112,-150.0,9.851e-05,2]
[398350584,1765549832123,-238.12,0.0001,2]
[398350585,1765549832133,-238.12,0.000101,2]
[398350586,1765549832145,-238.12,0.000102,2]
[398350587,1765549832155,-135.64,0.000102,2]
[398350590,1765549832167,-102.48,0.000102,2]
[398350592,1765549832177,-238.12,0.000103,2]
[398350594,1765549832189,-66.43070456,0.000104,2]
[398350597,1765549832205,-171.68929544,0.000104,2]
[398350599,1765549832215,-238.12,0.000105,2]
[398350601,1765549832225,-238.12,0.000106,2]
[398350602,1765549832235,-238.12,0.000107,2]
[398350603,1765549832245,-238.12,0.000107,2]
[398350605,1765549832255,-238.12,0.000108,2]
[398350606,1765549832264,-238.12,0.000109,2]
[398350607,1765549832275,-238.12,0.00011,2]
[398350608,1765549832286,-157.74901835,0.000112,2]
[398350609,1765549832296,-151.28515503,0.00011385,2]
[398350610,1765549832305,-158.0,0.000114,2]
[398350611,1765549832315,-108030.80356118,0.000115,2]
[398350658,1765549838420,-709.0,9.557e-05,2]
[398350659,1765549838430,-574.12855637,0.0001072,2]
[398350660,1765549838440,-238.12,0.000111,2]
[398350661,1765549838452,-238.12,0.000111,2]
[398350662,1765549838462,-238.12,0.000112,2]
[398350663,1765549838472,-595.37131296,0.00011268,2]
[398350664,1765549838482,-238.12,0.000113,2]
[398350665,1765549838492,-238.12,0.000114,2]
[398350666,1765549838503,-6010.71051126,0.000115,2]
[398350667,1765549838519,-69154.09150163,0.000115,2]
[398350668,1765549838533,-8186.02382301,0.000115,2]
[398350669,1765549838545,-38656.54900693,0.000115,2]
[398350670,1765549838556,-1450.74465607,0.000115,2]
[398350671,1765549838568,-683.88842277,0.000115,2]
[398350672,1765549838580,-1058.23592004,0.000115,2]
[398350673,1765549838593,-374.98291664,0.000115,2]
[398350674,1765549838609,-286.0,0.000115,2]
[398350675,1765549838620,-541.79725575,0.000115,2]
[398350676,1765549838636,-4635.81697283,0.000115,2]
[398350677,1765549838648,-524.87469203,0.000115,2]
[398350678,1765549838661,-92360.10913,0.000115,2]
[398350679,1765549838674,-940923.68012,0.000115,2]